fUST/lending_fUST_20250426
["ID","MTS","AMOUNT","RATE_DAILY","PERIOD"]
[359003796,1745620246995,-500.0,0.00016438,2]
[359003797,1745620247004,-500.0,0.00016438,2]
[359003798,1745620247014,-500.0,0.00016438,2]
[359003799,1745620247024,-500.0,0.00016438,2]
[359003800,1745620247034,-669.71,0.00016438,2]
[359003801,1745620247043,-503.79054164,0.00016438,2]
[359003802,1745620247052,-500.0,0.00016438,2]
[359003803,1745620247061,-226.8558584,0.00016438,2]
[359003804,1745620287513,-197.25371995,0.00014078,2]
[359003805,1745620289165,-500.0,0.00014078,2]
[359003806,1745620290664,-500.0,0.00014078,2]
[359003807,1745620335231,-494.84227828,0.00014078,2]
[359003812,1745620357972,500.0,0.00014077,2]
[359003813,1745620362173,-494.84227828,0.00014077,2]
[359003814,1745620366495,-500.0,0.00014077,2]
[359003815,1745620368118,-500.0,0.00014077,2]
[359003816,1745620371926,-500.0,0.00014077,2]
[359003817,1745620376577,-196.03296571,0.00014077,2]
[359003818,1745620376606,-164.38145421,0.00014077,2]
[359003819,1745620376642,-139.58558008,0.00014077,2]
[359003820,1745620379764,-360.41441992,0.00014077,2]
[359003821,1745620381415,-500.0,0.00014077,2]
[359003822,1745620385828,-300.0,0.00014076,2]
[359003823,1745620385859,-58.7430803,0.00014077,2]
[359003826,1745620513109,-151.0,0.00014077,2]
[359003827,1745620569749,-1200.0,0.00014077,2]
[359003828,1745620569773,-149.0,0.00014077,2]
[359003829,1745620572504,-151.0,0.00014077,2]
[359003830,1745620572526,-39.67382829,0.00014078,2]
[359003831,1745620573309,-190.67382829,0.00014078,2]
[359003832,1745620574432,-190.67382829,0.00014078,2]
[359003833,1745620576402,-244.09880099,0.00014078,2]
[359003834,1745620577571,-244.09880099,0.00014078,2]
[359003835,1745620578088,-244.09880099,0.00014078,2]
[359003836,1745620580433,-244.09880099,0.00014114,2]
[359003837,1745620580875,1692.54539592,0.00014,2]
[359003838,1745620590812,-244.09880099,0.00014077,2]
[359003839,1745620595447,-234.96325526,0.00014077,2]
[359003840,1745620598219,-20.93794375,0.00014077,2]
[359003841,1745620598243,-134.55600631,0.00014077,2]
[359003842,1745620603553,-316.55784123,0.00014077,2]
[359003843,1745620606285,-115.17270189,0.00014077,2]
[359003844,1745620606311,-52.95540887,0.00014077,2]
[359003845,1745620612956,-312.17366959,0.00014077,2]
[359003846,1745620616851,-134.87092154,0.00014077,2]
[359003847,1745620616876,-121.03027747,0.00014077,2]
[359003848,1745620621335,-246.63695476,0.00014077,2]
[359003849,1745620625454,-132.33276777,0.00014077,2]
[359003850,1745620625482,-121.03027747,0.00014077,2]
[359003852,1745620629232,-314.80944284,0.00014077,2]
[359003855,1745620635356,-64.16027969,0.00014077,2]
[359003856,1745620635604,-146.01583805,0.00014077,2]
[359003857,1745620638634,-165.02896217,0.00014077,2]
[359003858,1745620643755,-188.95519978,0.00014077,2]
[359003859,1745620643782,-146.01583805,0.00014077,2]
[359003862,1745620649278,-222.77005563,0.00014077,2]
[359003863,1745620652664,-131.21410632,0.00014077,2]
[359003864,1745620652689,-42.03857341,0.00014077,2]
[359003865,1745620657077,-266.93980068,0.00014077,2]
[359003866,1745620660511,-191.02162591,0.00014077,2]
[359003867,1745620660549,-6.54653437,0.00014077,2]
[359003868,1745620667253,-322.88600081,0.00014077,2]
[359003869,1745620671206,-165.75566501,0.00014077,2]
[359003870,1745620674571,-251.74029489,0.00014014,2]
[359003871,1745620674603,-4.81179981,0.00014077,2]
[359003872,1745620674631,-118.23910249,0.00014077,2]
[359003873,1745620679451,-285.81222323,0.00014077,2]
[359003874,1745620683900,-95.94867428,0.00014077,2]
[359003875,1745620683936,-148.0316936,0.00014077,2]
[359003876,1745620689772,-166.63018891,0.00014077,2]
[359003877,1745620693747,-185.33811749,0.00014077,2]
[359003878,1745620693773,-114.66188251,0.00014077,2]
[359003879,1745620698491,-260.13133045,0.00014077,2]
[359003882,1745620709895,-287.92959457,0.00014076,2]
[359003883,1745620713818,-319.16944221,0.00014075,2]
[359003884,1745620717073,-180.83055779,0.00014075,2]
[359003885,1745620717097,-242.22395415,0.00014075,2]
[359003887,1745620722749,-257.77604585,0.00014075,2]
[359003888,1745620722774,-46.02542056,0.00014075,2]
[359003889,1745620727616,216.75148,0.0001399,2]
[359003890,1745620728907,-198.55245974,0.00014075,2]
[359003892,1745620732872,-163.9248556,0.00014075,2]
[359003893,1745620737328,-91.4972641,0.00014075,2]
[359003894,1745620737354,-90.15707825,0.00014075,2]
[359003895,1745620744067,-154.42080205,0.00014074,2]
[359003896,1745620746681,-145.57919795,0.00014074,2]
[359003897,1745620746707,-70.53929343,0.00014075,2]
[359003900,1745620755169,-178.13892656,0.00014075,2]
[359003901,1745620760209,-161.16470176,0.00014075,2]
[359003902,1745620760235,-49.74786272,0.00014075,2]
[359003903,1745620764615,-257.97018183,0.00014075,2]
[359003904,1745620768577,-192.28195545,0.00014075,2]
[359003905,1745620768610,-1.01430753,0.00014075,2]
[359003906,1745620774279,882.42577165,0.00013975,2]
[359003907,1745620774618,-157.006,0.00014075,2]
[359003908,1745620779690,-184.32083923,0.00014075,2]
[359003909,1745620783449,-180.93813753,0.00014075,2]
[359003910,1745620783473,-24.43559875,0.00014075,2]
[359003911,1745620787298,-227.63907955,0.00014075,2]
[359003912,1745620790211,-207.86036884,0.00014075,2]
[359003914,1745620797084,-40.06495286,0.00014075,2]
[359003915,1745620797108,-113.51442954,0.00014075,2]
[359003916,1745620801988,-263.67939882,0.00014075,2]
[359003917,1745620804741,-231.14145208,0.00014074,2]
[359003918,1745620810309,-68.85854792,0.00014074,2]
[359003919,1745620810338,-142.31854779,0.00014074,2]
[359003921,1745620813448,-152.0,0.00014074,2]
[359003922,1745620818627,-154.80012704,0.00014074,2]
[359003923,1745620825213,-252.45370805,0.00014074,2]
[359003925,1745620831488,-210.31372063,0.00014074,2]
[359003926,1745620835662,-168.30941899,0.00014074,2]
[359003927,1745620838342,-119.8044775,0.00014074,2]
[359003928,1745620838365,-41.61827877,0.00014074,2]
[359003929,1745620845917,-163.77161528,0.00014074,2]
[359003930,1745620848697,-11.3242557,0.00014074,2]
[359003931,1745620848721,-152.02280939,0.00014074,2]
[359003932,1745620856273,-38.61381251,0.00014074,2]
[359003933,1745620856298,-310.03082939,0.00014074,2]
[359003934,1745620863639,-291.76242607,0.00014073,2]
[359003935,1745620867535,-8.23757393,0.00014073,2]
[359003936,1745620867560,-161.18807007,0.00014074,2]
[359003938,1745620875244,-28.78110054,0.00014074,2]
[359003939,1745620875269,-124.41043109,0.00014074,2]
[359003940,1745620881299,-280.21821502,0.00014074,2]
[359003941,1745620881324,-152.97331661,0.00014074,2]
[359003942,1745620887212,-280.0,0.00014074,2]
[359003943,1745620891484,-67.02668339,0.00014074,2]
[359003944,1745620891509,-266.59025335,0.00014074,2]
[359003947,1745620898151,-114.15670112,0.00014074,2]
[359003948,1745620898180,-38.98357636,0.00014074,2]
[359003949,1745620902663,-368.27025873,0.00014074,2]
[359003950,1745620902687,-131.72974127,0.00014074,2]
[359003951,1745620906924,-309.59164251,0.00014074,2]
[359003952,1745620911973,-58.67861622,0.00014074,2]
[359003953,1745620911999,-188.03046636,0.00014074,2]
[359003954,1745620920918,-253.29091742,0.00014074,2]
[359003955,1745620925389,-246.70908258,0.00014073,2]
[359003960,1745620930690,-53.29091742,0.00014073,2]
[359003961,1745620930714,-58.67861622,0.00014074,2]
[359003962,1745620930741,-88.03046636,0.00014074,2]
[359003963,1745620934963,-63.96953364,0.00014074,2]
[359003964,1745620934997,-244.82569589,0.00014074,2]
[359003965,1745620940523,-205.25059648,0.00014074,2]
[359003966,1745620943991,-49.92370763,0.00014074,2]
[359003967,1745620944017,-244.82569589,0.00014074,2]
[359003968,1745620949503,-255.17430411,0.00014074,2]
[359003969,1745620949527,-65.82024533,0.00014074,2]
[359003970,1745620954099,-272.52190345,0.00014073,2]
[359003971,1745620959257,-152.76030464,0.00014073,2]
[359003972,1745620965708,-74.71779191,0.00014073,2]
[359003973,1745620965733,-108.8365073,0.00014073,2]
[359003974,1745620971508,-174.60912803,0.00014073,2]
[359003975,1745620971531,-125.39087197,0.00014073,2]
[359003976,1745620975107,-348.0,0.00014073,2]
[359003977,1745620978585,-26.60912803,0.00014073,2]
[359003978,1745620978611,-187.23134576,0.00014073,2]
[359003979,1745620981739,-68.95836499,0.00014073,2]
[359003980,1745620981776,-129.3478545,0.00014073,2]
[359003981,1745620985669,-157.7702144,0.00014072,2]
[359003982,1745620990072,-142.2297856,0.00014072,2]
[359003983,1745620990096,-115.22954308,0.00014073,2]
[359003984,1745620990120,-42.54067132,0.00014073,2]
[359003985,1745620994878,-208.64377634,0.00014073,2]
[359003986,1745620997879,-248.81555234,0.00014073,2]
[359003987,1745620997906,-42.54067132,0.00014073,2]
[359003988,1745621003230,-170.60694021,0.00014073,2]
[359003989,1745621006592,-216.11849138,0.00014073,2]
[359003990,1745621009772,-70.73389709,0.00014073,2]
[359003991,1745621009804,-175.1107754,0.00014073,2]
[359003992,1745621013626,-201.39223592,0.00014014,2]
[359003993,1745621013661,-52.76309159,0.00014073,2]
[359003994,1745621017514,-433.16852699,0.00014034,2]
[359003997,1745621045006,-281.16852699,0.00014034,2]
[359003998,1745621047870,-152.0,0.00014034,2]
[359003999,1745621050582,-305.38092673,0.00014034,2]
[359004000,1745621054710,-220.21239974,0.00014034,2]
[359004001,1745621058400,-241.42503369,0.00014034,2]
[359004002,1745621063537,-179.00545056,0.00014034,2]
[359004003,1745621068357,-145.668981,0.00014034,2]
[359004004,1745621068382,-158.00743437,0.00014072,2]
[359004007,1745621072940,-141.99256563,0.00014072,2]
[359004008,1745621072967,-70.35282128,0.00014072,2]
[359004010,1745621079577,-100.85135703,0.00014072,2]
[359004011,1745621079600,-62.83403912,0.00014072,2]
[359004016,1745621084626,-179.00545056,0.00014072,2]
[359004020,1745621090708,-60.97245505,0.00014072,2]
[359004021,1745621090732,-248.49691125,0.00014072,2]
[359004023,1745621095595,-251.50308875,0.00014072,2]
[359004025,1745621095619,-293.09092273,0.00014072,2]
[359004026,1745621100229,-4.22712055,0.00014072,2]
[359004027,1745621100259,-159.4582756,0.00014072,2]
[359004031,1745621106872,-288.50268529,0.00014071,2]
[359004032,1745621109971,-11.49731471,0.00014071,2]
[359004033,1745621109995,-200.0,0.00014071,2]
[359004038,1745621116989,-300.0,0.00014071,2]
[359004040,1745621121366,-152.0,0.00014071,2]
[359004042,1745621127118,-329.417,0.00014071,2]
[359004044,1745621131311,-177.13192046,0.00014071,2]
[359004045,1745621135421,-41.45107954,0.00014071,2]
[359004046,1745621135445,-109.54892046,0.00014071,2]
[359004164,1745621194985,-110.45107954,0.00014071,2]
[359004165,1745621195020,-300.0,0.00014071,2]
[359004166,1745621195049,-89.54892046,0.00014071,2]
[359004168,1745621199933,832.04389924,0.00013972,2]
[359004169,1745621201411,-208.97024643,0.00014071,2]
[359004170,1745621201439,-82.31962027,0.00014071,2]
[359004176,1745621228235,-300.0,0.0001407,2]
[359004177,1745621228262,-17.84325533,0.00014071,2]
[359004178,1745621232532,-179.00545056,0.00014071,2]
[359004180,1745621233103,-220.83167384,0.00014071,2]
[359004181,1745621233125,-573.73434203,0.00014071,2]
[359004182,1745621233146,-500.0,0.00014071,2]
[359004183,1745621233167,-533.98939412,0.00014071,2]
[359004184,1745621233191,-500.0,0.00014071,2]
[359004185,1745621233212,-500.0,0.00014071,2]
[359004186,1745621233235,-500.0,0.00014071,2]
[359004187,1745621233257,-497.99618678,0.00014071,2]
[359004188,1745621233278,-500.0,0.00014071,2]
[359004189,1745621233308,-500.0,0.00014071,2]
[359004190,1745621233332,-500.0,0.00014071,2]
[359004191,1745621233355,-500.0,0.00014071,2]
[359004192,1745621233382,-500.0,0.00014071,2]
[359004193,1745621233404,-500.0,0.00014071,2]
[359004194,1745621233426,-500.0,0.00014071,2]
[359004195,1745621233457,-500.0,0.00014071,2]
[359004196,1745621233482,-500.0,0.00014071,2]
[359004197,1745621233504,-500.0,0.00014071,2]
[359004198,1745621233525,-500.0,0.00014071,2]
[359004199,1745621233743,-500.0,0.00014071,2]
[359004200,1745621233773,-500.0,0.00014071,2]
[359004201,1745621233794,-500.0,0.00014071,2]
[359004202,1745621233817,-500.0,0.00014071,2]
[359004203,1745621233847,-500.0,0.00014071,2]
[359004204,1745621233867,-500.0,0.00014071,2]
[359004205,1745621233890,-500.0,0.00014071,2]
[359004206,1745621233910,-293.79518194,0.00014071,2]
[359004207,1745621233939,-500.0,0.00014071,2]
[359004208,1745621233961,-500.0,0.00014071,2]
[359004209,1745621233986,-500.0,0.00014071,2]
[359004210,1745621234008,-500.0,0.00014071,2]
[359004211,1745621234032,-500.0,0.00014071,2]
[359004212,1745621234061,-500.0,0.00014071,2]
[359004213,1745621234085,-500.0,0.00014071,2]
[359004214,1745621234107,-500.0,0.00014071,2]
[359004215,1745621234130,-500.0,0.00014071,2]
[359004216,1745621234154,-399.90603944,0.00014071,2]
[359004217,1745621234188,-500.0,0.00014071,2]
[359004218,1745621234211,-436.22388849,0.00014071,2]
[359004219,1745621234234,-500.0,0.00014071,2]
[359004220,1745621234264,-500.0,0.00014071,2]
[359004221,1745621234287,-500.0,0.00014071,2]
[359004222,1745621234308,-500.0,0.00014071,2]
[359004223,1745621234338,-500.0,0.00014071,2]
[359004224,1745621234360,-500.0,0.00014071,2]
[359004225,1745621234392,-371.06646667,0.00014071,2]
[359004226,1745621234421,-500.0,0.00014071,2]
[359004227,1745621234444,-500.0,0.00014071,2]
[359004228,1745621234473,-500.0,0.00014071,2]
[359004229,1745621234497,-500.0,0.00014071,2]
[359004230,1745621234524,-500.0,0.00014071,2]
[359004231,1745621234546,-500.0,0.00014071,2]
[359004232,1745621234574,-500.0,0.00014071,2]
[359004233,1745621234596,-500.0,0.00014071,2]
[359004234,1745621234618,-500.0,0.00014071,2]
[359004235,1745621234647,-500.0,0.00014071,2]
[359004236,1745621234674,-500.0,0.00014071,2]
[359004237,1745621234703,-500.0,0.00014071,2]
[359004238,1745621234730,-500.0,0.00014071,2]
[359004239,1745621234758,-500.0,0.00014071,2]
[359004240,1745621234787,-500.0,0.00014071,2]
[359004241,1745621234814,-500.0,0.00014071,2]
[359004242,1745621234840,-500.0,0.00014071,2]
[359004243,1745621234868,-500.0,0.00014071,2]
[359004244,1745621234896,-500.0,0.00014071,2]
[359004245,1745621234924,-500.0,0.00014071,2]
[359004246,1745621234952,-500.0,0.00014071,2]
[359004247,1745621234982,-500.0,0.00014071,2]
[359004248,1745621235012,-500.0,0.00014071,2]
[359004249,1745621235034,-500.0,0.00014071,2]
[359004250,1745621235060,-585.7131066,0.00014071,2]
[359004251,1745621235089,-585.7131066,0.00014071,2]
[359004252,1745621235118,-585.7131066,0.00014071,2]
[359004253,1745621235146,-585.7131066,0.00014071,2]
[359004254,1745621235174,-74.13135159,0.00014071,2]
[359004255,1745621238140,-511.58175501,0.00014071,2]
[359004256,1745621238174,-585.7131066,0.00014071,2]
[359004257,1745621238207,-585.7131066,0.00014071,2]
[359004258,1745621238240,-101.20241932,0.00014071,2]
[359004262,1745621250342,-163.68539615,0.00014071,2]
[359004263,1745621253092,-320.82529113,0.00014071,2]
[359004264,1745621253124,-87.39874217,0.00014071,2]
[359004266,1745621254328,-243.50018124,0.00014071,2]
[359004273,1745621287006,-300.0,0.0001407,2]
[359004274,1745621293292,-200.0,0.00014071,2]
[359004277,1745621298198,-54.81418319,0.00014071,2]
[359004278,1745621298230,-152.3713942,0.00014071,2]
[359004279,1745621304299,-378.25217166,0.00014071,2]
[359004297,1745621357776,-300.0,0.00014069,2]
[359004298,1745621357801,-42.0,0.0001407,2]
[359004300,1745621363141,-458.0,0.0001407,2]
[359004301,1745621363171,-500.0,0.0001407,2]
[359004302,1745621363200,-500.0,0.0001407,2]
[359004303,1745621363232,-606.49615316,0.0001407,2]
[359004304,1745621363269,-500.0,0.0001407,2]
[359004305,1745621363296,-500.0,0.0001407,2]
[359004306,1745621363324,-500.0,0.0001407,2]
[359004307,1745621363352,-500.0,0.0001407,2]
[359004308,1745621363386,-500.0,0.0001407,2]
[359004309,1745621363415,-500.0,0.0001407,2]
[359004310,1745621363442,-500.0,0.0001407,2]
[359004311,1745621363471,-418.12706035,0.0001407,2]
[359004312,1745621363506,-500.0,0.0001407,2]
[359004313,1745621363538,-239.99060394,0.0001407,2]
[359004314,1745621363567,-500.0,0.0001407,2]
[359004315,1745621363592,-500.0,0.0001407,2]
[359004316,1745621363627,-500.0,0.0001407,2]
[359004317,1745621363655,-500.0,0.0001407,2]
[359004318,1745621363683,-500.0,0.0001407,2]
[359004319,1745621363713,-500.0,0.0001407,2]
[359004320,1745621364009,-500.0,0.0001407,2]
[359004321,1745621364045,-500.0,0.0001407,2]
[359004322,1745621364073,-500.0,0.0001407,2]
[359004323,1745621364099,-500.0,0.0001407,2]
[359004324,1745621364124,-313.09652625,0.0001407,2]
[359004325,1745621364150,-500.0,0.0001407,2]
[359004326,1745621364176,-500.0,0.0001407,2]
[359004327,1745621364204,-500.0,0.0001407,2]
[359004328,1745621364233,-500.0,0.0001407,2]
[359004329,1745621364261,-500.0,0.0001407,2]
[359004330,1745621364287,-500.0,0.0001407,2]
[359004331,1745621364313,-500.0,0.0001407,2]
[359004332,1745621364340,-500.0,0.0001407,2]
[359004333,1745621364368,-500.0,0.0001407,2]
[359004334,1745621364394,-500.0,0.0001407,2]
[359004335,1745621364422,-500.0,0.0001407,2]
[359004336,1745621364453,-500.0,0.0001407,2]
[359004337,1745621364483,-500.0,0.0001407,2]
[359004338,1745621364512,-631.33170753,0.0001407,2]
[359004339,1745621364541,-500.0,0.0001407,2]
[359004340,1745621364569,-500.0,0.0001407,2]
[359004341,1745621364595,-500.0,0.0001407,2]
[359004342,1745621364623,-500.0,0.0001407,2]
[359004343,1745621364652,-500.0,0.0001407,2]
[359004344,1745621364678,-500.0,0.0001407,2]
[359004345,1745621364705,-500.0,0.0001407,2]
[359004346,1745621364733,-500.0,0.0001407,2]
[359004347,1745621364760,-500.0,0.0001407,2]
[359004348,1745621364786,-500.0,0.0001407,2]
[359004349,1745621364813,-500.0,0.0001407,2]
[359004350,1745621364840,-500.0,0.0001407,2]
[359004351,1745621364866,-500.0,0.0001407,2]
[359004352,1745621364892,-500.0,0.0001407,2]
[359004353,1745621364920,-500.0,0.0001407,2]
[359004354,1745621364948,-500.0,0.0001407,2]
[359004355,1745621364974,-500.0,0.0001407,2]
[359004356,1745621365001,-500.0,0.0001407,2]
[359004357,1745621365030,-500.0,0.0001407,2]
[359004358,1745621365056,-500.0,0.0001407,2]
[359004359,1745621365082,-500.0,0.0001407,2]
[359004360,1745621365111,-500.0,0.0001407,2]
[359004361,1745621365138,-500.0,0.0001407,2]
[359004362,1745621365164,-500.0,0.0001407,2]
[359004363,1745621365190,-200.0,0.0001407,2]
[359004364,1745621365216,-500.0,0.0001407,2]
[359004365,1745621365241,-500.0,0.0001407,2]
[359004366,1745621365269,-200.0,0.0001407,2]
[359004367,1745621365297,-500.0,0.0001407,2]
[359004368,1745621365324,-500.0,0.0001407,2]
[359004369,1745621365353,-500.0,0.0001407,2]
[359004370,1745621365384,-500.0,0.0001407,2]
[359004371,1745621365412,-500.0,0.0001407,2]
[359004372,1745621365440,-500.0,0.0001407,2]
[359004373,1745621365471,-500.0,0.0001407,2]
[359004374,1745621365500,-500.0,0.0001407,2]
[359004375,1745621365529,-500.0,0.0001407,2]
[359004376,1745621365559,-500.0,0.0001407,2]
[359004377,1745621365588,-500.0,0.0001407,2]
[359004378,1745621365616,-500.0,0.0001407,2]
[359004379,1745621365639,-168.40303097,0.00014071,2]
[359004380,1745621365660,-50000.0,0.00014072,2]
[359004381,1745621365684,-683.73221924,0.00014076,2]
[359004383,1745621374099,-316.73800176,0.00014076,2]
[359004384,1745621374120,-213.29291791,0.000141,2]
[359004385,1745621374142,-500.0,0.000141,2]
[359004386,1745621374164,-500.0,0.000141,2]
[359004387,1745621374186,-335.4387325,0.00014214,2]
[359004392,1745621395920,33.52443221,0.0001407,2]
[359004418,1745621431741,-466.47556779,0.0001407,2]
[359004420,1745621431751,-300.0,0.0001407,2]
[359004422,1745621431761,-250.0,0.00014823,2]
[359004424,1745621431770,-83.52443221,0.00014954,2]
[359004427,1745621431915,-2272.81655758,0.00014954,2]
[359004428,1745621431925,-1000.0,0.00014973,2]
[359004429,1745621431935,-250.0,0.00015271,2]
[359004430,1745621431945,-420.00642625,0.00015313,2]
[359004432,1745621431954,-664.93,0.00015369,3]
[359004434,1745621431963,-300.0,0.00015378,2]
[359004436,1745621431973,-1200.0,0.00015378,2]
[359004438,1745621431982,-24900.0,0.00015379,2]
[359004440,1745621431992,-420.00642625,0.00015569,2]
[359004442,1745621432001,-8212.5412588,0.00015776,2]
[359004444,1745621432011,-314.5524734,0.00015777,2]
[359004446,1745621432021,-152.0,0.00015815,2]
[359004448,1745621432030,-420.00642625,0.00015826,2]
[359004450,1745621432039,-221.63,0.0001588,3]
[359004452,1745621432048,-6681.61,0.0001589,3]
[359004454,1745621432058,-3546.13,0.0001589,3]
[359004456,1745621432067,-1773.07,0.0001589,3]
[359004458,1745621432077,-886.53,0.0001589,3]
[359004460,1745621432086,-443.27,0.0001589,3]
[359004461,1745621432096,-207.4,0.0001589,2]
[359004462,1745621432107,-47932.70547595,0.000159,2]
[359004463,1745621432119,-26018.57550586,0.000159,2]
[359004464,1745621432129,-313.10658385,0.00016,3]
[359004465,1745621432139,-840.21051354,0.00016,3]
[359004466,1745621432149,-160.0,0.00016,3]
[359004467,1745621432158,-2805.72617109,0.00016,3]
[359004518,1745621438964,-4082.72521681,0.00016,3]
[359004519,1745621438980,-5690.81743834,0.00016,3]
[359004520,1745621438990,-160.0,0.00016,3]
[359004521,1745621439000,-1365.54906977,0.00016,2]
[359004522,1745621439010,-290.47261826,0.00016022,2]
[359004523,1745621439020,-420.00642625,0.00016082,2]
[359004524,1745621439030,-160.0,0.00016108,2]
[359004525,1745621439039,-160.0,0.00016108,2]
[359004526,1745621439050,-545.0,0.00016121,2]
[359004527,1745621439059,-403.0,0.00016121,2]
[359004528,1745621439069,-403.0,0.00016121,2]
[359004529,1745621439079,-2247.0,0.00016121,2]
[359004530,1745621439090,-706.0,0.00016121,2]
[359004531,1745621439101,-160.0,0.00016167,2]
[359004532,1745621439110,-160.0,0.00016167,2]
[359004533,1745621439120,-160.0,0.00016167,2]
[359004534,1745621439130,-160.0,0.00016167,2]
[359004535,1745621439140,-420.98395174,0.00016167,2]
[359004536,1745621439150,-840.21051354,0.00016167,2]
[359004537,1745621439160,-12579.26882624,0.00016167,2]
[359004538,1745621439170,-313.10658385,0.00016167,2]
[359004539,1745621439179,-160.0,0.00016167,2]
[359004540,1745621439189,-8153.73112592,0.00016336,2]
[359004541,1745621439200,-420.00642625,0.00016338,2]
[359004542,1745621439210,-263.51651799,0.00016407,2]
[359004543,1745621439219,-151.0,0.00016438,2]
[359004544,1745621439229,-500.0,0.00016438,2]
[359004545,1745621439239,-507.26969103,0.00016438,2]
[359004546,1745621439248,-500.0,0.00016438,2]
[359004547,1745621439258,-500.0,0.00016438,2]
[359004548,1745621439267,-500.0,0.00016438,2]
[359004549,1745621439278,-500.0,0.00016438,2]
[359004550,1745621439288,-500.0,0.00016438,2]
[359004551,1745621439298,-436.53013061,0.00016438,2]
[359004552,1745621439308,-500.0,0.00016438,2]
[359004553,1745621439317,-500.0,0.00016438,2]
[359004554,1745621439327,-500.0,0.00016438,2]
[359004555,1745621439337,-500.0,0.00016438,2]
[359004556,1745621439348,-500.0,0.00016438,2]
[359004557,1745621439358,-504.75229508,0.00016438,2]
[359004558,1745621439368,-500.0,0.00016438,2]
[359004559,1745621439377,-500.0,0.00016438,2]
[359004560,1745621439387,-500.0,0.00016438,2]
[359004562,1745621439397,-500.0,0.00016438,2]
[359004564,1745621439407,-500.0,0.00016438,2]
[359004566,1745621439417,-500.0,0.00016438,2]
[359004567,1745621439427,-500.0,0.00016438,2]
[359004568,1745621439437,-500.0,0.00016438,2]
[359004569,1745621439447,-500.0,0.00016438,2]
[359004570,1745621439456,-500.0,0.00016438,2]
[359004572,1745621439469,-500.0,0.00016438,2]
[359004574,1745621439478,-500.0,0.00016438,2]
[359004576,1745621439489,-560.91950433,0.00016438,2]
[359004578,1745621439498,-500.0,0.00016438,2]
[359004580,1745621439509,-500.0,0.00016438,2]
[359004582,1745621439519,-500.0,0.00016438,2]
[359004584,1745621439529,-500.0,0.00016438,2]
[359004586,1745621439539,-500.0,0.00016438,2]
[359004588,1745621439549,-500.0,0.00016438,2]
[359004590,1745621439558,-500.0,0.00016438,2]
[359004592,1745621439567,-570.27937649,0.00016438,2]
[359004594,1745621439577,-500.0,0.00016438,2]
[359004596,1745621439586,-500.0,0.00016438,2]
[359004598,1745621439596,-500.0,0.00016438,2]
[359004599,1745621439606,-500.0,0.00016438,2]
[359004602,1745621439616,-500.0,0.00016438,2]
[359004603,1745621439626,-500.0,0.00016438,2]
[359004606,1745621439637,-500.0,0.00016438,2]
[359004608,1745621439646,-500.0,0.00016438,2]
[359004610,1745621439656,-210.827,0.00016438,2]
[359004612,1745621439666,-500.0,0.00016438,2]
[359004614,1745621439676,-500.0,0.00016438,2]
[359004616,1745621439685,-525.10113576,0.00016438,2]
[359004618,1745621439696,-327.65457757,0.00016438,2]
[359004620,1745621439706,-500.0,0.00016438,2]
[359004622,1745621439716,-500.0,0.00016438,2]
[359004624,1745621439726,-500.0,0.00016438,2]
[359004626,1745621439736,-500.0,0.00016438,2]
[359004628,1745621439745,-500.0,0.00016438,2]
[359004630,1745621439756,-502.51455826,0.00016438,2]
[359004632,1745621439767,-259.05310626,0.00016438,2]
[359004634,1745621439777,-504.27459353,0.00016438,2]
[359004636,1745621439787,-500.0,0.00016438,2]